[Event "Turkish Second League 2019"]
[Site "Konya"]
[Date "2019.07.28"]
[Round "9"]
[White "Caberoglu, Arda"]
[Black "Yakar, Ozan Tuna"]
[Result "1-0"]
[ECO "B52"]
[WhiteElo "1885"]
[BlackElo "1817"]
[Annotator "NA"]
[PlyCount "90"]
[EventDate "2019.07.22"]
[EventType "team-tourn"]
[EventCountry "TUR"]
[SourceTitle "playchess.com"]
[Source "ChessBase"]
[SourceQuality "1"]
[TimeControl "5400+30"]

1. e4 {[%emt 0:03:30]} c5 {[%emt 0:05:30]} 2. Nf3 {[%emt 0:00:30]} d6 {[%emt 0:00:30]} 3. Bb5+ {[%emt 0:00:30]} Bd7 {[%emt 0:00:00]} 4. Bxd7+ {[%emt 0:00:30]} Nxd7 {[%emt 0:00:00]} 5. O-O {[%emt 0:00:30]} Ngf6 {[%emt 0:00:00]} 6. Qe2 {[%emt 0:02:30]} Rc8 {[%emt 0:00:00]} 7. b3 g6 {[%emt 0:02:30]} 8. Bb2 {[%emt 0:14:00]} Bg7 {[%emt 0:00:00]} 9. c4 {[%emt 0:05:30]} O-O {[%emt 0:00:00]} 10. Nc3 {[%emt 0:02:30]} Ng4 {[%emt 0:13:30]} 11. d3 {[%emt 0:10:30]} Nge5 {[%emt 0:10:30]} 12. Kh1 {[%emt 0:07:30]} Nxf3 {[%emt 0:15:30]} 13. Qxf3 {[%emt 0:01:30]} Ne5 {[%emt 0:05:30]} 14. Qe2 {[%emt 0:05:30]} Nc6 {[%emt 0:00:30]} 15. Qd2 {[%emt 0:06:30]} Qa5 {[%emt 0:13:30]} 16. Rfd1 {[%emt 0:10:30]} a6 {[%emt 0:06:30]} 17. Nd5 {[%emt 0:08:48]} Qxd2 {[%emt 0:00:30]} 18. Rxd2 {[%emt 0:00:00]} b5 {[%emt 0:00:30]} 19. cxb5 {[%emt 0:07:23]} axb5 {[%emt 0:00:30]} 20. a4 {[%emt 0:00:50]} bxa4 {[%emt 0:06:01]} 21. bxa4 {[%emt 0:00:48]} Ra8 {[%emt 0:02:36]} 22. Bxg7 {[%emt 0:04:33]} Kxg7 {[%emt 0:00:01]} 23. Rb2 {[%emt 0:00:50]} Rfb8 {[%emt 0:07:05]} 24. Rxb8 {[%emt 0:04:43]} Rxb8 {[%emt 0:00:05]} 25. g3 {[%emt 0:00:23]} Ra8 {[%emt 0:04:05]} 26. Kg2 {[%emt 0:01:52]} Ra7 {[%emt 0:05:04]} 27. Kf3 {[%emt 0:00:47]} Nd4+ {[%emt 0:00:30]} 28. Kf4 {[%emt 0:00:36]} e6 {[%emt 0:01:01]} 29. Nb6 {[%emt 0:00:22]} Kf6 {[%emt 0:00:45]} 30. Ra2 {[%emt 0:00:23]} Ra6 {[%emt 0:00:33]} 31. Rb2 {[%emt 0:00:39]} Nc6 {[%emt 0:01:39]} 32. Nd7+ {[%emt 0:00:30]} Ke7 {[%emt 0:00:24]} 33. Rb7 {[%emt 0:00:24]} Ra7 {[%emt 0:00:38]} 34. Nxc5+ {[%emt 0:00:36]} Rxb7 {[%emt 0:00:35]} 35. Nxb7 {[%emt 0:00:01]} Kd7 {[%emt 0:00:35]} 36. a5 {[%emt 0:00:19]} Kc7 {[%emt 0:00:50]} 37. a6 {[%emt 0:00:03]} f6 {[%emt 0:00:00]} 38. Ke3 {[%emt 0:00:48]} d5 {[%emt 0:00:30]} 39. exd5 {[%emt 0:00:53]} exd5 {[%emt 0:00:01]} 40. Nc5 {[%emt 0:00:00]} Kd6 {[%emt 0:00:49]} 41. d4 {[%emt 0:00:20]} Na7 {[%emt 0:00:26]} 42. h4 {[%emt 0:01:02]} Nb5 {[%emt 0:00:33]} 43. h5 {[%emt 0:00:50]} gxh5 {[%emt 0:00:40]} 44. Kf4 {[%emt 0:00:43]} Ke7 {[%emt 0:00:33]} 45. Ke3 {[%emt 0:00:29]} Kd6 {[%emt 0:01:01]} 1-0

[Event "Turkish Second League 2019"]
[Site "Konya"]
[Date "2019.07.28"]
[Round "9"]
[White "Catal, Uktenur"]
[Black "Nesanir, Selin"]
[Result "1-0"]
[ECO "A61"]
[WhiteElo "1885"]
[BlackElo "1622"]
[Annotator "NA"]
[PlyCount "82"]
[EventDate "2019.07.22"]
[EventType "team-tourn"]
[EventCountry "TUR"]
[SourceTitle "playchess.com"]
[Source "ChessBase"]
[SourceQuality "1"]
[TimeControl "5400+30"]

1. d4 Nf6 2. c4 c5 3. d5 e6 4. Nc3 exd5 5. cxd5 d6 6. Nf3 g6 7. Bf4 Bg7 8. h3 a6 9. a4 Qc7 10. e3 Nbd7 11. Be2 Rb8 12. O-O O-O 13. Nd2 Ne8 14. Bh2 f5 15. Rc1 Ndf6 16. Re1 Qe7 17. Bf1 Ne4 18. Ncxe4 fxe4 19. Qc2 Nf6 20. Nc4 Ne8 21. a5 Bd7 22. Nd2 Nf6 23. Qb3 h5 24. Qb6 Ne8 25. Rxc5 Be5 26. Bxe5 Qxe5 27. Rc4 Qxd5 28. Nxe4 Qf5 29. f4 d5 30. Ng3 Qf7 31. Rc2 h4 32. Nh1 Bf5 33. Rd2 Nf6 34. Rc1 Rbc8 35. Rxc8 Rxc8 36. Nf2 Ne4 37. Nxe4 Bxe4 38. Bd3 Rc1+ 39. Kh2 g5 40. Qd8+ Qf8 41. Qxg5+ Qg7 1-0

[Event "Turkish Second League 2019"]
[Site "Konya"]
[Date "2019.07.28"]
[Round "9"]
[White "Ozbek, Busra"]
[Black "Aydemir, Sermin Naz"]
[Result "1-0"]
[ECO "A90"]
[WhiteElo "1866"]
[BlackElo "1491"]
[Annotator "NA"]
[PlyCount "73"]
[EventDate "2019.07.22"]
[EventType "team-tourn"]
[EventCountry "TUR"]
[SourceTitle "playchess.com"]
[Source "ChessBase"]
[SourceQuality "1"]
[TimeControl "5400+30"]

1. d4 {[%emt 0:00:30]} f5 {[%emt 0:00:30]} 2. Nf3 {[%emt 0:00:00]} e6 {[%emt 0:00:30]} 3. c4 {[%emt 0:01:00]} d5 {[%emt 0:00:00]} 4. g3 {[%emt 0:00:30]} Nf6 {[%emt 0:00:00]} 5. Bg2 {[%emt 0:00:00]} c6 {[%emt 0:00:00]} 6. O-O {[%emt 0:01:00]} Bd6 {[%emt 0:00:00]} 7. b3 {[%emt 0:00:30]} Qe7 {[%emt 0:00:30]} 8. Bb2 {[%emt 0:00:00]} O-O {[%emt 0:00:30]} 9. Ne5 {[%emt 0:01:00]} Nbd7 {[%emt 0:00:30]} 10. Nd2 {[%emt 0:05:30]} Ne4 {[%emt 0:07:30]} 11. Qc2 {[%emt 0:09:30]} Ndf6 {[%emt 0:04:30]} 12. Ndf3 {[%emt 0:09:30]} g5 {[%emt 0:08:30]} 13. Ne1 {[%emt 0:09:30]} Nh5 {[%emt 0:18:30]} 14. N1d3 {[%emt 0:09:30]} Ng7 {[%emt 0:14:30]} 15. f3 {[%emt 0:02:30]} Nf6 {[%emt 0:03:30]} 16. Bc1 {[%emt 0:06:30]} Nd7 {[%emt 0:04:30]} 17. a4 {[%emt 0:07:30]} a5 {[%emt 0:08:30]} 18. Qd2 {[%emt 0:06:30]} f4 {[%emt 0:01:30]} 19. g4 {[%emt 0:14:49]} Nxe5 {[%emt 0:00:30]} 20. dxe5 {[%emt 0:01:14]} Bc7 {[%emt 0:05:30]} 21. Ba3 {[%emt 0:01:38]} Bb6+ {[%emt 0:00:00]} 22. Kh1 {[%emt 0:02:29]} c5 {[%emt 0:00:00]} 23. e3 {[%emt 0:01:40]} Bd7 {[%emt 0:08:03]} 24. exf4 {[%emt 0:01:59]} gxf4 {[%emt 0:00:01]} 25. cxd5 {[%emt 0:02:11]} exd5 {[%emt 0:01:41]} 26. Nxf4 {[%emt 0:00:56]} Qg5 {[%emt 0:01:54]} 27. Qxd5+ {[%emt 0:00:53]} Kh8 {[%emt 0:06:23]} 28. Qxd7 {[%emt 0:01:12]} Qxf4 {[%emt 0:00:48]} 29. Rae1 {[%emt 0:00:28]} Rf7 {[%emt 0:01:40]} 30. Qd6 {[%emt 0:01:05]} Bc7 {[%emt 0:01:00]} 31. Qxc5 {[%emt 0:00:32]} Ne6 {[%emt 0:03:25]} 32. Qe3 {[%emt 0:00:16]} Re8 {[%emt 0:00:29]} 33. Qxf4 {[%emt 0:01:58]} Nxf4 {[%emt 0:00:02]} 34. Re4 {[%emt 0:00:00]} Rxe5 {[%emt 0:00:59]} 35. Bb2 {[%emt 0:00:07]} Nxg2 {[%emt 0:00:55]} 36. Kxg2 {[%emt 0:00:09]} Rfe7 {[%emt 0:00:00]} 37. Rfe1 {[%emt 0:00:24]} 1-0

[Event "Turkish Second League 2019"]
[Site "Konya"]
[Date "2019.07.28"]
[Round "9"]
[White "Boz, Fatih Emre"]
[Black "Alaoglu, Niyazi Bekirhan"]
[Result "1-0"]
[ECO "B00"]
[WhiteElo "1854"]
[BlackElo "1769"]
[Annotator "NA"]
[PlyCount "141"]
[EventDate "2019.07.22"]
[EventType "team-tourn"]
[EventCountry "TUR"]
[SourceTitle "playchess.com"]
[Source "ChessBase"]
[SourceQuality "1"]
[TimeControl "5400+30"]

1. e4 {[%emt 0:00:30]} b6 {[%emt 0:00:30]} 2. Nc3 {[%emt 0:04:30]} Bb7 {[%emt 0:00:00]} 3. Nf3 {[%emt 0:00:30]} e6 {[%emt 0:00:00]} 4. Bd3 {[%emt 0:01:30]} d5 {[%emt 0:06:30]} 5. O-O {[%emt 0:03:30]} Nf6 {[%emt 0:05:30]} 6. exd5 {[%emt 0:26:30]} exd5 {[%emt 0:03:30]} 7. Re1+ {[%emt 0:00:30]} Be7 {[%emt 0:01:30]} 8. Qe2 {[%emt 0:00:30]} c5 {[%emt 0:15:30]} 9. Bb5+ {[%emt 0:08:30]} Kf8 {[%emt 0:06:30]} 10. Bd3 {[%emt 0:11:30]} Bc8 {[%emt 0:21:30]} 11. b3 {[%emt 0:06:30]} Bg4 {[%emt 0:05:30]} 12. h3 {[%emt 0:08:30]} Bxf3 {[%emt 0:03:30]} 13. Qxf3 {[%emt 0:00:30]} Nc6 {[%emt 0:00:00]} 14. Bb2 {[%emt 0:04:06]} Nd4 {[%emt 0:05:00]} 15. Qd1 {[%emt 0:02:53]} Qd7 {[%emt 0:05:24]} 16. Ne2 {[%emt 0:00:54]} Nf5 {[%emt 0:01:53]} 17. Bxf5 {[%emt 0:01:17]} Qxf5 {[%emt 0:00:30]} 18. Ng3 {[%emt 0:00:00]} Qf4 {[%emt 0:08:07]} 19. d4 {[%emt 0:01:18]} h5 {[%emt 0:06:13]} 20. Qc1 {[%emt 0:08:47]} Qxc1 {[%emt 0:01:05]} 21. Raxc1 {[%emt 0:00:00]} g6 {[%emt 0:00:04]} 22. c4 {[%emt 0:00:50]} h4 {[%emt 0:00:34]} 23. Ne2 {[%emt 0:01:36]} dxc4 {[%emt 0:00:49]} 24. Rxc4 {[%emt 0:02:24]} Rh5 {[%emt 0:00:59]} 25. dxc5 {[%emt 0:00:51]} Rxc5 {[%emt 0:00:53]} 26. Rxc5 {[%emt 0:02:12]} bxc5 {[%emt 0:00:03]} 27. Rd1 {[%emt 0:01:33]} a5 {[%emt 0:00:40]} 28. Nc3 {[%emt 0:00:40]} Rb8 {[%emt 0:01:05]} 29. Ba3 {[%emt 0:00:05]} Rc8 {[%emt 0:00:01]} 30. Ne2 {[%emt 0:01:31]} Rc7 {[%emt 0:01:02]} 31. Kf1 {[%emt 0:00:29]} Ke8 {[%emt 0:00:57]} 32. Rc1 {[%emt 0:00:01]} Kd7 {[%emt 0:00:00]} 33. Rc4 {[%emt 0:00:38]} Nd5 {[%emt 0:00:28]} 34. Ra4 {[%emt 0:00:29]} Ra7 {[%emt 0:00:22]} 35. Ke1 {[%emt 0:00:50]} f5 {[%emt 0:00:27]} 36. Rc4 {[%emt 0:00:21]} Nb6 {[%emt 0:00:44]} 37. Bxc5 {[%emt 0:00:10]} Bxc5 {[%emt 0:00:44]} 38. Rxc5 {[%emt 0:00:30]} a4 {[%emt 0:00:00]} 39. Rb5 {[%emt 0:00:16]} axb3 {[%emt 0:00:42]} 40. axb3 {[%emt 0:00:02]} Nc8 {[%emt 0:00:34]} 41. Rd5+ {[%emt 0:01:34]} Ke6 {[%emt 0:00:32]} 42. Nf4+ {[%emt 0:00:28]} Kf7 {[%emt 0:00:31]} 43. b4 {[%emt 0:00:31]} Ra1+ {[%emt 0:00:23]} 44. Ke2 {[%emt 0:00:24]} Ne7 {[%emt 0:00:22]} 45. Rd6 {[%emt 0:01:02]} Ra2+ {[%emt 0:00:05]} 46. Rd2 {[%emt 0:00:07]} Ra3 {[%emt 0:00:56]} 47. Rb2 {[%emt 0:00:01]} g5 {[%emt 0:00:00]} 48. Nd3 {[%emt 0:00:19]} Nd5 {[%emt 0:00:30]} 49. Kd2 {[%emt 0:01:15]} Nc3 {[%emt 0:00:27]} 50. f3 {[%emt 0:00:31]} Nb5 {[%emt 0:00:37]} 51. Rc2 {[%emt 0:00:28]} Ke6 {[%emt 0:00:42]} 52. Rc6+ {[%emt 0:00:30]} Nd6 {[%emt 0:00:34]} 53. Rc2 {[%emt 0:00:33]} Nb5 {[%emt 0:00:31]} 54. Rc6+ {[%emt 0:00:57]} Nd6 {[%emt 0:00:09]} 55. Nb2 {[%emt 0:00:00]} Ra2 {[%emt 0:00:31]} 56. Kc3 {[%emt 0:00:01]} Kd7 {[%emt 0:00:33]} 57. Rc5 {[%emt 0:00:42]} g4 {[%emt 0:00:12]} 58. Kb3 {[%emt 0:00:25]} gxh3 {[%emt 0:00:16]} 59. gxh3 {[%emt 0:01:16]} Ra1 {[%emt 0:00:07]} 60. f4 {[%emt 0:00:08]} Rf1 {[%emt 0:00:55]} 61. Rd5 {[%emt 0:00:05]} Rf3+ {[%emt 0:01:34]} 62. Rd3 {[%emt 0:00:35]} Rxf4 {[%emt 0:00:39]} 63. Nc4 {[%emt 0:00:43]} Rxc4 {[%emt 0:00:30]} 64. Rxd6+ {[%emt 0:00:30]} Kxd6 {[%emt 0:00:00]} 65. Kxc4 {[%emt 0:00:00]} Ke5 {[%emt 0:00:29]} 66. b5 {[%emt 0:00:00]} f4 {[%emt 0:00:55]} 67. b6 {[%emt 0:00:00]} Ke4 {[%emt 0:00:08]} 68. b7 {[%emt 0:00:18]} f3 {[%emt 0:00:35]} 69. b8=Q {[%emt 0:00:30]} f2 {[%emt 0:00:30]} 70. Qb1+ {[%emt 0:00:00]} Kf3 {[%emt 0:00:00]} 71. Qf1 {[%emt 0:00:00]} 1-0

[Event "Turkish Second League 2019"]
[Site "Konya"]
[Date "2019.07.28"]
[Round "9"]
[White "Erdogan, Yunus Emre"]
[Black "Kara, Yanki"]
[Result "1-0"]
[ECO "B06"]
[WhiteElo "1833"]
[BlackElo "2193"]
[Annotator "NA"]
[PlyCount "36"]
[EventDate "2019.07.22"]
[EventType "team-tourn"]
[EventCountry "TUR"]
[SourceTitle "playchess.com"]
[Source "ChessBase"]
[SourceQuality "1"]
[TimeControl "5400+30"]

1. e4 {[%emt 0:00:30]} g6 {[%emt 0:02:30]} 2. d4 {[%emt 0:00:30]} Bg7 {[%emt 0:00:00]} 3. Nc3 {[%emt 0:00:30]} d6 {[%emt 0:00:00]} 4. f4 {[%emt 0:00:30]} a6 {[%emt 0:00:00]} 5. Nf3 {[%emt 0:00:30]} b5 {[%emt 0:00:00]} 6. Bd3 {[%emt 0:00:30]} Nd7 {[%emt 0:00:00]} 7. e5 {[%emt 0:01:30]} c5 {[%emt 0:00:00]} 8. Be4 {[%emt 0:02:30]} Rb8 {[%emt 0:00:00]} 9. O-O {[%emt 0:00:00]} Nh6 {[%emt 0:01:00]} 10. exd6 {[%emt 0:02:00]} exd6 {[%emt 0:10:30]} 11. f5 {[%emt 0:06:30]} Ng4 {[%emt 0:48:30]} 12. dxc5 {[%emt 0:17:30]} b4 {[%emt 0:09:30]} 13. Nd5 {[%emt 0:10:30]} Nxc5 {[%emt 0:00:30]} 14. Ng5 {[%emt 0:11:30]} Nxe4 {[%emt 0:19:37]} 15. Qxg4 {[%emt 0:11:30]} Bxf5 {[%emt 0:04:00]} 16. Rxf5 {[%emt 0:11:30]} Nf6 {[%emt 0:00:21]} 17. Bf4 {[%emt 0:01:30]} h6 {[%emt 0:00:52]} 18. Ne6 {[%emt 0:05:58]} fxe6 {[%emt 0:00:10]} 1-0

[Event "Turkish Second League 2019"]
[Site "Konya"]
[Date "2019.07.28"]
[Round "9"]
[White "Ozcan, Kadir Kutay"]
[Black "Bicer, Atakan Mert"]
[Result "0-1"]
[ECO "B81"]
[WhiteElo "1832"]
[BlackElo "1870"]
[Annotator "NA"]
[PlyCount "82"]
[EventDate "2019.07.22"]
[EventType "team-tourn"]
[EventCountry "TUR"]
[SourceTitle "playchess.com"]
[Source "ChessBase"]
[SourceQuality "1"]
[TimeControl "5400+30"]

1. e4 {[%emt 0:00:30]} c5 {[%emt 0:04:30]} 2. Nf3 {[%emt 0:00:00]} d6 {[%emt 0:00:30]} 3. d4 {[%emt 0:00:00]} cxd4 {[%emt 0:00:30]} 4. Nxd4 {[%emt 0:00:30]} Nf6 {[%emt 0:00:30]} 5. Nc3 {[%emt 0:00:30]} a6 {[%emt 0:00:30]} 6. h3 {[%emt 0:00:30]} b5 {[%emt 0:00:30]} 7. g4 {[%emt 0:00:30]} Bb7 {[%emt 0:00:30]} 8. Bg2 {[%emt 0:00:30]} e6 {[%emt 0:00:30]} 9. g5 {[%emt 0:07:30]} Nfd7 {[%emt 0:02:30]} 10. a4 {[%emt 0:08:30]} b4 {[%emt 0:00:30]} 11. Nce2 {[%emt 0:00:30]} Be7 {[%emt 0:05:30]} 12. h4 {[%emt 0:00:30]} Nc5 {[%emt 0:01:30]} 13. Ng3 {[%emt 0:01:30]} Qc7 {[%emt 0:10:30]} 14. O-O {[%emt 0:03:30]} Nbd7 {[%emt 0:24:30]} 15. Bd2 {[%emt 0:05:30]} a5 {[%emt 0:03:30]} 16. Nb5 {[%emt 0:01:30]} Qb6 {[%emt 0:00:30]} 17. c3 {[%emt 0:01:30]} O-O {[%emt 0:01:30]} 18. cxb4 {[%emt 0:03:30]} axb4 {[%emt 0:00:00]} 19. Bxb4 {[%emt 0:00:30]} Ba6 {[%emt 0:07:00]} 20. Bc3 {[%emt 0:05:30]} Nxa4 {[%emt 0:06:30]} 21. Qxa4 {[%emt 0:05:30]} Bxb5 {[%emt 0:01:30]} 22. Qxa8 {[%emt 0:00:30]} Bxf1 {[%emt 0:00:30]} 23. Qa7 {[%emt 0:00:30]} Bb5 {[%emt 0:01:30]} 24. Qxb6 {[%emt 0:07:30]} Nxb6 {[%emt 0:00:00]} 25. Ra7 {[%emt 0:02:30]} Bd8 {[%emt 0:02:00]} 26. Bb4 {[%emt 0:03:30]} Nc8 {[%emt 0:01:30]} 27. Ra1 {[%emt 0:01:30]} Re8 {[%emt 0:04:46]} 28. Rd1 {[%emt 0:07:30]} Bc7 {[%emt 0:05:01]} 29. Bf1 {[%emt 0:00:30]} Bxf1 {[%emt 0:00:56]} 30. Nxf1 {[%emt 0:00:30]} f6 {[%emt 0:02:04]} 31. Ne3 {[%emt 0:02:30]} Kf7 {[%emt 0:00:16]} 32. Rc1 {[%emt 0:02:30]} Bb6 {[%emt 0:02:23]} 33. Nc4 {[%emt 0:01:30]} Bd4 {[%emt 0:00:42]} 34. Bxd6 {[%emt 0:02:30]} Bxb2 {[%emt 0:00:59]} 35. Rb1 {[%emt 0:01:30]} Rd8 {[%emt 0:03:01]} 36. Bc5 {[%emt 0:00:30]} Bd4 {[%emt 0:00:27]} 37. Ba3 {[%emt 0:02:30]} Rd7 {[%emt 0:02:22]} 38. Rb8 {[%emt 0:00:30]} Ne7 {[%emt 0:00:10]} 39. Kg2 {[%emt 0:02:30]} Ng6 {[%emt 0:01:03]} 40. Kg3 {[%emt 0:02:11]} Be5+ {[%emt 0:00:25]} 41. Kg4 {[%emt 0:02:22]} Bxb8 {[%emt 0:00:05]} 0-1

[Event "Turkish Second League 2019"]
[Site "Konya"]
[Date "2019.07.28"]
[Round "9"]
[White "Ucucu, Salih"]
[Black "Civi, Akin"]
[Result "0-1"]
[ECO "C42"]
[WhiteElo "1819"]
[BlackElo "1724"]
[Annotator "NA"]
[PlyCount "52"]
[EventDate "2019.07.22"]
[EventType "team-tourn"]
[EventCountry "TUR"]
[SourceTitle "playchess.com"]
[Source "ChessBase"]
[SourceQuality "1"]
[TimeControl "5400+30"]

1. e4 {[%emt 0:00:30]} e5 {[%emt 0:00:30]} 2. Nf3 {[%emt 0:00:30]} Nf6 {[%emt 0:00:30]} 3. Nxe5 {[%emt 0:01:30]} d6 {[%emt 0:00:30]} 4. Nf3 {[%emt 0:00:30]} Nxe4 {[%emt 0:00:30]} 5. Nc3 {[%emt 0:00:30]} Nxc3 {[%emt 0:00:30]} 6. dxc3 {[%emt 0:00:00]} Be7 {[%emt 0:00:00]} 7. Be3 {[%emt 0:01:00]} Nd7 {[%emt 0:01:00]} 8. Qd2 {[%emt 0:01:30]} O-O {[%emt 0:00:30]} 9. Bd3 {[%emt 0:00:30]} c6 {[%emt 0:01:30]} 10. Nd4 {[%emt 0:06:30]} Ne5 {[%emt 0:08:30]} 11. Nf5 {[%emt 0:05:30]} Bxf5 {[%emt 0:20:30]} 12. Bxf5 {[%emt 0:00:30]} Nc4 {[%emt 0:01:30]} 13. Bxh7+ {[%emt 0:07:30]} Kh8 {[%emt 0:03:30]} 14. Qd3 {[%emt 0:06:30]} Nxe3 {[%emt 0:00:30]} 15. fxe3 {[%emt 0:00:00]} g6 {[%emt 0:00:30]} 16. Bxg6 {[%emt 0:00:00]} fxg6 {[%emt 0:00:00]} 17. Qxg6 {[%emt 0:00:30]} Rf6 {[%emt 0:04:00]} 18. Qh5+ {[%emt 0:00:30]} Kg7 {[%emt 0:00:30]} 19. O-O-O {[%emt 0:03:30]} Qd7 {[%emt 0:04:30]} 20. Rd4 {[%emt 0:12:30]} Rg6 {[%emt 0:08:30]} 21. Rf1 {[%emt 0:02:30]} Qe6 {[%emt 0:07:30]} 22. Rf3 {[%emt 0:08:30]} Rh8 {[%emt 0:02:30]} 23. Qa5 {[%emt 0:03:30]} Rxg2 {[%emt 0:04:30]} 24. b3 {[%emt 0:04:30]} Rhxh2 {[%emt 0:00:30]} 25. Qc7 {[%emt 0:01:30]} Rxc2+ {[%emt 0:01:30]} 26. Kd1 {[%emt 0:00:30]} Rcg2 {[%emt 0:00:30]} 0-1

[Event "Turkish Second League 2019"]
[Site "Konya"]
[Date "2019.07.28"]
[Round "9"]
[White "Turkmen, Yusuf Cagan"]
[Black "Can, Furkan"]
[Result "1-0"]
[ECO "D02"]
[WhiteElo "1796"]
[BlackElo "1900"]
[Annotator "NA"]
[PlyCount "57"]
[EventDate "2019.07.22"]
[EventType "team-tourn"]
[EventCountry "TUR"]
[SourceTitle "playchess.com"]
[Source "ChessBase"]
[SourceQuality "1"]
[TimeControl "5400+30"]

1. d4 {[%emt 0:00:30]} d5 {[%emt 0:00:30]} 2. Bf4 {[%emt 0:00:30]} Nf6 {[%emt 0:00:00]} 3. e3 {[%emt 0:00:30]} e6 {[%emt 0:00:00]} 4. Nd2 {[%emt 0:00:30]} Bd6 {[%emt 0:00:30]} 5. Bg3 {[%emt 0:00:30]} O-O {[%emt 0:00:00]} 6. Bd3 {[%emt 0:00:30]} c5 {[%emt 0:00:00]} 7. c3 {[%emt 0:00:30]} Nc6 {[%emt 0:00:30]} 8. Ngf3 {[%emt 0:00:30]} b6 {[%emt 0:00:00]} 9. Ne5 {[%emt 0:05:30]} Bb7 {[%emt 0:00:00]} 10. f4 {[%emt 0:00:30]} Ne7 {[%emt 0:00:30]} 11. Qb1 {[%emt 0:04:30]} g6 {[%emt 0:01:30]} 12. h3 {[%emt 0:05:30]} Nf5 {[%emt 0:01:30]} 13. Bf2 {[%emt 0:06:30]} Be7 {[%emt 0:00:00]} 14. g4 {[%emt 0:01:30]} Nd6 {[%emt 0:00:00]} 15. Ke2 {[%emt 0:00:00]} Nfe4 {[%emt 0:00:30]} 16. h4 {[%emt 0:04:00]} f6 {[%emt 0:07:30]} 17. Nef3 {[%emt 0:00:30]} Nxd2 {[%emt 0:02:30]} 18. Nxd2 {[%emt 0:05:30]} f5 {[%emt 0:00:30]} 19. h5 {[%emt 0:01:30]} Ne4 {[%emt 0:02:30]} 20. hxg6 {[%emt 0:04:30]} hxg6 {[%emt 0:00:00]} 21. Qg1 {[%emt 0:00:00]} Kg7 {[%emt 0:08:00]} 22. Nf3 {[%emt 0:08:00]} Rh8 {[%emt 0:04:30]} 23. Qg2 {[%emt 0:05:30]} Qd6 {[%emt 0:15:30]} 24. Ne5 {[%emt 0:04:30]} Rag8 {[%emt 0:01:30]} 25. Rag1 {[%emt 0:08:30]} Rxh1 {[%emt 0:05:30]} 26. Rxh1 {[%emt 0:01:30]} Bf6 {[%emt 0:03:30]} 27. gxf5 {[%emt 0:01:30]} exf5 {[%emt 0:02:30]} 28. Qxg6+ {[%emt 0:00:30]} Kf8 {[%emt 0:00:30]} 29. Qf7# {[%emt 0:00:30]} 1-0

[Event "Turkish Second League 2019"]
[Site "Konya"]
[Date "2019.07.28"]
[Round "9"]
[White "Uyan, Ata Gunduz"]
[Black "Ozsakallioglu, Akin"]
[Result "1-0"]
[ECO "A48"]
[WhiteElo "1781"]
[BlackElo "1901"]
[Annotator "NA"]
[PlyCount "116"]
[EventDate "2019.07.22"]
[EventType "team-tourn"]
[EventCountry "TUR"]
[SourceTitle "playchess.com"]
[Source "ChessBase"]
[SourceQuality "1"]
[TimeControl "5400+30"]

1. d4 {[%emt 0:00:30]} Nf6 {[%emt 0:00:30]} 2. c3 {[%emt 0:00:30]} g6 {[%emt 0:00:30]} 3. Nf3 {[%emt 0:01:30]} Bg7 {[%emt 0:04:30]} 4. Bg5 {[%emt 0:00:30]} d6 {[%emt 0:01:30]} 5. Nbd2 {[%emt 0:00:30]} O-O {[%emt 0:02:30]} 6. e4 {[%emt 0:07:30]} c5 {[%emt 0:00:30]} 7. dxc5 {[%emt 0:02:30]} dxc5 {[%emt 0:00:30]} 8. Be2 {[%emt 0:00:30]} h6 {[%emt 0:03:30]} 9. Be3 {[%emt 0:06:30]} Qc7 {[%emt 0:02:30]} 10. h3 {[%emt 0:00:00]} b6 {[%emt 0:00:00]} 11. Qc2 {[%emt 0:01:00]} Nc6 {[%emt 0:04:00]} 12. O-O {[%emt 0:04:30]} Nh5 {[%emt 0:05:30]} 13. Nh2 {[%emt 0:10:30]} Nf4 {[%emt 0:14:30]} 14. Bxf4 {[%emt 0:09:30]} Qxf4 {[%emt 0:01:30]} 15. Rfe1 {[%emt 0:00:00]} Bb7 {[%emt 0:09:30]} 16. Bf1 {[%emt 0:10:00]} Rad8 {[%emt 0:07:30]} 17. Rad1 {[%emt 0:02:30]} Rd7 {[%emt 0:01:30]} 18. g3 {[%emt 0:03:30]} Qc7 {[%emt 0:00:00]} 19. Bg2 {[%emt 0:00:00]} Ba6 {[%emt 0:02:00]} 20. Bf1 {[%emt 0:01:00]} Bxf1 {[%emt 0:00:00]} 21. Ndxf1 {[%emt 0:00:30]} Rfd8 {[%emt 0:01:00]} 22. Ne3 {[%emt 0:02:30]} e6 {[%emt 0:00:30]} 23. Nf3 {[%emt 0:05:30]} h5 {[%emt 0:05:30]} 24. Rxd7 {[%emt 0:03:30]} Rxd7 {[%emt 0:00:00]} 25. Rd1 {[%emt 0:00:00]} Bh6 {[%emt 0:00:00]} 26. Nc4 {[%emt 0:01:00]} Bg7 {[%emt 0:04:30]} 27. Rxd7 {[%emt 0:00:30]} Qxd7 {[%emt 0:00:30]} 28. Qd2 {[%emt 0:00:30]} Qxd2 {[%emt 0:00:30]} 29. Ncxd2 {[%emt 0:01:30]} Kf8 {[%emt 0:01:30]} 30. Kf1 {[%emt 0:00:30]} Ke7 {[%emt 0:00:30]} 31. Ke2 {[%emt 0:00:00]} b5 {[%emt 0:04:30]} 32. Nf1 {[%emt 0:02:00]} a5 {[%emt 0:03:30]} 33. Ne3 {[%emt 0:02:30]} a4 {[%emt 0:01:30]} 34. g4 {[%emt 0:00:30]} hxg4 {[%emt 0:00:51]} 35. hxg4 {[%emt 0:00:30]} a3 {[%emt 0:00:09]} 36. bxa3 {[%emt 0:01:30]} Bxc3 {[%emt 0:00:30]} 37. Kd3 {[%emt 0:00:30]} Bb2 {[%emt 0:00:47]} 38. Nc2 {[%emt 0:00:30]} Kd6 {[%emt 0:00:54]} 39. Ke3 {[%emt 0:07:18]} Bc1+ {[%emt 0:02:42]} 40. Kd3 {[%emt 0:02:20]} Na5 {[%emt 0:04:01]} 41. Kc3 {[%emt 0:01:37]} Bh6 {[%emt 0:00:56]} 42. Kd3 {[%emt 0:05:42]} Nc4 {[%emt 0:08:08]} 43. Kc3 {[%emt 0:00:01]} Bg7+ {[%emt 0:00:04]} 44. Kd3 {[%emt 0:00:11]} Nb2+ {[%emt 0:00:09]} 45. Kd2 {[%emt 0:00:33]} Na4 {[%emt 0:00:18]} 46. Kd3 {[%emt 0:00:51]} Bb2 {[%emt 0:00:34]} 47. Ng5 {[%emt 0:01:06]} Ke7 {[%emt 0:01:13]} 48. Nf3 {[%emt 0:00:23]} Kd6 {[%emt 0:02:25]} 49. Ng5 {[%emt 0:00:08]} f6 {[%emt 0:00:00]} 50. Nf3 {[%emt 0:00:13]} Nc3 {[%emt 0:00:03]} 51. Nd2 {[%emt 0:01:30]} c4+ {[%emt 0:00:33]} 52. Ke3 {[%emt 0:00:46]} Bc1 {[%emt 0:00:03]} 53. Nd4 {[%emt 0:00:36]} Nb1 {[%emt 0:01:06]} 54. Nxb5+ {[%emt 0:00:18]} Kc5 {[%emt 0:00:06]} 55. Nc7 {[%emt 0:00:26]} c3 {[%emt 0:00:48]} 56. Nxe6+ {[%emt 0:00:29]} Kd6 {[%emt 0:00:09]} 57. Nd4 {[%emt 0:01:33]} cxd2 {[%emt 0:00:11]} 58. Nb5+ {[%emt 0:00:58]} Kc5 {[%emt 0:00:08]} 1-0